[Event "85th Tata Steel Masters 2023"]
[White "Gukesh D"]
[Black "Maghsoodloo,Parham"]
[Site "Wijk aan Zee"]
[Round "8.7"]
[Annotator "TA"]
[Result "1-0"]
[Date "2023.01.22"]
[WhiteElo "2725"]
[BlackElo "2719"]
[PlyCount "97"]
[TimeControl "60"]

{[%evp 13,97,22,31,32,35,38,43,43,47,27,36,20,54,71,51,64,87,69,91,48,84,53,46,45,46,45,60,67,55,66,81,85,93,101,95,110,125,128,123,139,123,93,95,50,44,0,0,0,6,-31,-33,-18,-11,-11,-5,-27,-12,-7,-7,-8,-25,-30,-21,-15,0,0,0,0,0,-220,0,0,255,255,12837,12838,12837,12837,12837,1106,29995,29996,29996,29997,29997,29998]} 1. d4 {[%emt 0:0:27]} Nf6 {[%emt 0:0:9]} 2. c4 {[%emt 0:0:7]} e6 {[%emt 0:0:3]} 3. Nf3 {[%emt 0:1:5]} h6 {[%emt 0:0:4]} 4. Nc3 {[%emt 0:0:49]} Bb4 {[%emt 0:0:11]} 5. e3 {[%emt 0:0:16]} c5 {[%emt 0:5:59]} 6. Bd3 {[%emt 0:3:3]} O-O {[%emt 0:5:47]} 7. O-O {[%emt 0:1:35]} d5 {[%emt 0:8:30]} 8. cxd5 {[%emt 0:4:27] E50: Nimzo-Indian: Rubinstein: 4...0-0 5 Nf3.} exd5 {[%emt 0:2:43]} 9. dxc5 {[%emt 0:2:44]} Bxc5 {[%emt 0:5:39][%cal Yb4c5,Yc5b6,Yb6c7][%mdl 32]} 10. b3 {[%emt 0:2:1] [#] White is slightly better.} Nc6 $146 {[%emt 0:1:3]} ({Predecessor:} 10... Be6 11. Bb2 Nbd7 12. Ne2 Qe7 13. Rc1 Bd6 14. Nfd4 Rac8 15. Rxc8 Rxc8 16. Nf4 Ne5 {½-½ Jenneborg,S (1995)-Svrsek Jr,R (2177) LSS No Engine Cup 117 Preliminary 0 2014} )11. Bb2 {[%emt 0:0:52]} Bg4 {[%emt 0:3:39]} 12. h3 {[%emt 0:4:32]} Bh5 {[%emt 0:1:21]} 13. Rc1 {[%emt 0:16:23]} Bb6 {[%emt 0:6:5]} 14. Be2 {[%emt 0:6:58]} Rc8 {[%emt 0:7:21]} 15. Na4 {[%emt 0:16:41]} Bc7 {[%emt 0:2:2]} 16. Nc5 {[%emt 0:0:27]} Bxf3 {[%emt 0:0:20]} 17. Bxf3 {[%emt 0:2:56]} Be5 {[%emt 0:0:14]} 18. Qd2 {[%emt 0:4:34]} Qe7 {[%emt 0:10:40][%cal Yf6e4]} 19. Nd3 {[%emt 0:3:11][%cal Yc1c6] Black must now prevent Rxc6!} (19. Bxd5 $2 Bxb2 20. Bxf7+ Rxf7 $19 )Bxb2 {[%emt 0:0:23]} 20. Qxb2 {[%emt 0:0:2]} Rfd8 {[%emt 0:1:12]} 21. Rfd1 {[%emt 0:1:21]} g5 {[%emt 0:4:26]} 22. b4 {[%emt 0:4:2]} a6 {[%emt 0:4:1]} 23. a4 {[%emt 0:0:45]} Qd6 {[%emt 0:3:24]} 24. b5 {[%emt 0:9:21]} Ne7 {[%emt 0:2:40]} 25. a5 {[%emt 0:2:36]} axb5 {[%emt 0:14:16]} 26. Qxb5 {[%emt 0:0:17]} Nc6 {[%emt 0:0:47]} 27. Ra1 {[%emt 0:8:6]} Rc7 {[%emt 0:1:47]} 28. g3 {[%emt 0:2:45]} d4 {[%emt 0:2:26] Strongly threatening ...dxe3.} 29. Nb2 {[%emt 0:6:37]} (29. Ne1 $5 {[%cal Ra5a6]} )Nd5 {[%emt 0:3:28][%cal Yf6d5,Yd5c3,Yc3d1][%mdl 32]} 30. Nc4 {[%emt 0:3:43]} (30. exd4 Nc3 31. Qb6 Nxd1 32. Rxd1 Ne7 $17 )Qe6 {[%emt 0:0:7][%csl Ye3,Yh3]} 31. exd4 {[%emt 0:0:46] And now Rac1 would win.} Nc3 {[%emt 0:1:19] Excellent horsemanship.} 32. Qb6 {[%emt 0:1:22]} Nxd1 {[%emt 0:0:10]} 33. Qxc7 {[%emt 0:1:16]} Qe1+ {[%emt 0:1:11][%mdl 64] [#] Deflection, Double Attack} 34. Kh2 {[%emt 0:0:1] Active counter play!} Qxf2+ {[%emt 0:0:1]} 35. Bg2 $132 {[%emt 0:0:1][%mdl 2048] White puts up resistance} Rxd4 {[%emt 0:0:24]} 36. Qxb7 {[%emt 0:1:22]} Rxc4 {[%emt 0:1:33][%cal Yd4c4,Yc4c2,Yc2a2][%mdl 32]} 37. Rxd1 {[%emt 0:0:6] Rf1 is the strong threat.} Rc2 {[%emt 0:0:3][%csl Gc2][%cal Rf2g2]} (37... Nxa5 $2 38. Qb8+ Kg7 39. Rd8 $18 )38. Rg1 {[%emt 0:0:17]} Nd4 {[%emt 0:0:15] ( -> ...Nf3+)} (38... Nxa5 $2 39. Qa8+ Kg7 40. Qxa5 $18 )39. Kh1 {[%emt 0:1:9] Rf1 would be deadly.} (39. Qb8+ $2 Kh7 40. Kh1 Nf3 $19 )Nf5 {[%emt 0:0:58]} ({Don't do} 39... Qxg3 40. a6 Rc7 41. Qb8+ Kg7 42. Qb2 $14 (42. a7 Nf3 $11 ))(39... Ne2 $5 40. Qb8+ $8 Kh7 41. Be4+ f5 42. Qb7+ Kh8 $11 )40. Qb8+ {[%emt 0:0:48]} Kg7 {[%emt 0:0:36]} 41. a6 $2 {[%emt 0:22:12]} (41. g4 $1 $11 {and White is okay.} Ng3+ 42. Kh2 )Ra2 $2 {[%emt 0:13:46]} (41... Qxg3 $2 42. a7 Ra2 43. a8=Q $18 )(41... Nxg3+ $19 42. Kh2 Nf5 )42. Qe5+ $11 {[%emt 0:2:10]} Kg6 $2 {[%emt 0:2:42][%mdl 8192]} (42... Kg8 $11 43. Qb8+ Kg7 44. Qe5+ Kg8 45. Qe8+ Kg7 46. Qe5+ )43. g4 $18 {[%emt 0:0:45] Be4 would kill now.} Ne3 $2 {[%emt 0:4:43]} (43... Ng3+ 44. Qxg3 {[%mdl 64] Remove Defender} Qxg3 45. Be4+ {[%mdl 64] Discovered Attack} Kg7 46. Rxg3 Rxa6 )44. Be4+ {[%emt 0:3:17]} f5 {[%emt 0:0:0]} 45. Qd6+ {[%emt 0:1:13][%mdl 64] Skewer} Kf7 {[%emt 0:1:54]} 46. gxf5 {[%emt 0:5:50]} (46. Rc1 $142 Rc2 47. Rb1 (47. Bxc2 $2 Qg2# )(47. Qd7+ Kg8 $16 ))g4 {[%emt 0:13:7]} 47. Qe6+ {[%emt 0:1:10] White mates.} (47. Qxh6 $2 Qh2# )Kf8 {[%emt 0:0:10]} 48. Qf6+ {[%emt 0:0:12]} Kg8 {[%emt 0:0:5] [#]} 49. Bd5+ $1 {[%emt 0:0:7][%mdl 576] Deflection. A cool game by Gukesh D.   Weighted Error Value: White=0.13 (very precise) /Black=0.39} 1-0